bitfinex-derivatives/quotes_BTCF0:USTF0_20250309
["timestamp","ask_amount","ask_price","bid_price","bid_amount"]
[1741542284852,0.1213575,82416.0,82415.0,0.46627016]
[1741542284853,0.35006081,82416.0,82415.0,0.46627016]
[1741542285060,0.36182646,82416.0,82415.0,0.41313272]
[1741542285368,0.61342646,82416.0,82415.0,0.41313272]
[1741542285567,0.6210177,82416.0,82415.0,0.41313272]
[1741542285767,0.6210177,82416.0,82413.0,0.00018192]
[1741542285768,0.1213604,82414.0,82413.0,0.00018192]
[1741542285967,0.3392604,82414.0,82413.0,2e-08]
[1741542286263,0.3392604,82414.0,82400.0,0.10072]
[1741542286264,0.1214016,82386.0,82374.0,0.13345551]
[1741542286466,0.1214016,82386.0,82383.0,0.2468]
[1741542286672,0.2430349,82392.0,82389.0,0.0606982]
[1741542286865,0.12164,82392.0,82391.0,0.1213943]
[1741542287085,0.12164,82392.0,82391.0,0.4821943]
[1741542287271,0.243424,82398.0,82397.0,0.1213854]
[1741542287765,0.243424,82398.0,82395.0,0.0606938]
[1741542287766,0.01937653,82398.0,82391.0,0.60836]
[1741542287969,0.1213928,82393.0,82392.0,0.1213928]
[1741542288158,0.1213928,82393.0,82392.0,0.2528928]
[1741542288560,0.14076933,82393.0,82392.0,0.6136928]
[1741542289661,0.14076933,82393.0,82392.0,0.4923]
[1741542289866,0.14076933,82393.0,82392.0,0.1315]
[1741542290063,0.1214016,82386.0,82385.0,0.43123829]
[1741542290667,0.1214016,82386.0,82385.0,0.1214031]
[1741542290668,0.14077813,82386.0,82385.0,0.1214031]
[1741542291178,0.01937653,82386.0,82385.0,0.1214031]
[1741542291362,0.14077813,82386.0,82385.0,0.1239]
[1741542291669,0.1214046,82384.0,82383.0,0.00018204]
[1741542292179,0.1214296,82367.0,82366.0,0.4822258]
[1741542292469,0.4215126,82370.0,82365.0,0.1239]
[1741542292670,0.1214459,82356.0,82350.0,0.21364]
[1741542292975,0.1214518,82352.0,82351.0,0.2453532]
[1741542293175,0.0607208,82359.0,82358.0,0.0607202]
[1741542293559,0.0567208,82359.0,82358.0,0.4215202]
[1741542293867,0.0567208,82359.0,82358.0,0.3608]
[1741542294171,0.02034367,82359.0,82358.0,0.1214429]
[1741542294363,0.02034367,82359.0,82358.0,0.4822429]
[1741542294866,0.02034367,82359.0,82358.0,0.6106429]
[1741542295067,0.00018204,82360.0,82359.0,0.1214414]
[1741542295268,0.00018204,82360.0,82359.0,0.2498414]
[1741542295463,0.00182204,82379.0,82359.0,0.25408]
[1741542295768,0.060707,82378.0,82360.0,0.21368]
[1741542295961,0.1214355,82363.0,82362.0,0.4822351]
[1741542296360,0.121433,82365.0,82364.0,0.1214311]
[1741542297169,0.1214355,82363.0,82362.0,0.4822344]
[1741542297371,0.1214325,82366.0,82365.0,0.1214311]
[1741542297669,0.00018204,82371.0,82370.0,0.1214252]
[1741542297869,0.12160584,82371.0,82370.0,0.4822252]
[1741542298471,0.12160584,82371.0,82370.0,0.3608]
[1741542298775,0.00018204,82371.0,82369.0,0.3608]
[1741542298977,0.1214252,82370.0,82369.0,0.3608]
[1741542300169,0.133,82370.0,82363.0,0.2438355]
[1741542300371,0.00218204,82371.0,82370.0,0.1214252]
[1741542300576,0.12360584,82371.0,82370.0,0.1214252]
[1741542300871,0.00218204,82371.0,82363.0,0.1224]
[1741542301074,0.1214385,82361.0,82354.0,0.00018204]
[1741542301271,0.0607183,82363.0,82362.0,0.121437]
[1741542301474,0.0607183,82363.0,82362.0,0.482237]
[1741542301671,0.0607183,82363.0,82362.0,0.3608]
[1741542301871,0.0607183,82363.0,82362.0,0.482237]
[1741542302472,0.00218204,82371.0,82370.0,0.1214252]
[1741542302668,0.00218204,82371.0,82370.0,0.4822252]
[1741542302871,0.07554066,82403.0,82379.0,0.0607056]
[1741542303174,0.1213869,82396.0,82395.0,0.3608]
[1741542303477,0.1214002,82387.0,82386.0,0.1297]
[1741542303665,0.0607063,82379.0,82360.0,0.21368]
[1741542303871,0.060711,82373.0,82365.0,0.48872]
[1741542304072,0.0607146,82368.0,82365.0,0.3608]
[1741542304275,0.1214311,82366.0,82365.0,0.3608]
[1741542304669,0.1214326,82365.0,82364.0,0.00018204]
[1741542304972,0.01485216,82385.0,82364.0,0.00018204]
[1741542304973,0.12808,82374.0,82372.0,0.1214208]
[1741542305172,0.00018204,82380.0,82368.0,0.3608]
[1741542305173,0.12826204,82380.0,82368.0,0.3608]
[1741542305378,0.12159444,82380.0,82379.0,0.121412]
[1741542305778,0.00018204,82380.0,82379.0,0.482212]
[1741542305975,0.00018204,82380.0,82379.0,0.49999005]
[1741542306376,0.0606914,82399.0,82390.0,0.1213958]
[1741542306675,0.12321602,82391.0,82390.0,0.49998897]
[1741542306879,0.12321602,82391.0,82390.0,0.62918897]
[1741542307080,0.00182172,82391.0,82390.0,0.6113958]
[1741542307283,0.1333608,82402.0,82401.0,0.1213795]
[1741542307478,0.072668,82402.0,82401.0,0.49987026]
[1741542307680,0.072668,82402.0,82401.0,0.37849054]
[1741542307681,0.1213781,82402.0,82401.0,0.37849054]
[1741542307977,0.1213781,82402.0,82401.0,0.3608]
[1741542308183,0.182057,82408.0,82407.0,0.1213692]
[1741542308379,0.182057,82408.0,82407.0,0.01785415]
[1741542308580,0.1213781,82402.0,82401.0,0.3608]
[1741542308774,0.1213781,82402.0,82401.0,0.37865701]
[1741542308975,0.1213781,82402.0,82401.0,0.3608]
[1741542309177,0.1248,82403.0,82402.0,0.1213766]
[1741542309178,0.1213766,82403.0,82402.0,0.1213766]
[1741542309486,0.1213766,82403.0,82402.0,0.27325621]
[1741542309782,0.00018204,82410.0,82409.0,0.1213678]
[1741542309984,0.00018204,82410.0,82409.0,0.52818345]
[1741542310285,0.12154834,82410.0,82409.0,0.52818345]
[1741542310489,0.00018204,82410.0,82409.0,0.52818345]
[1741542310679,0.00018204,82410.0,82409.0,0.78608345]
[1741542311082,0.12454834,82410.0,82409.0,0.63627961]
[1741542311282,0.12454834,82410.0,82409.0,0.27547961]
[1741542311588,0.121381,82400.0,82399.0,5e-08]
[1741542311785,0.1214061,82383.0,82382.0,0.1343]
[1741542312186,0.07569863,82385.0,82382.0,0.1343]
[1741542312187,0.1214042,82385.0,82384.0,0.1820994]
[1741542312386,0.1214042,82385.0,82384.0,0.0607007]
[1741542312591,0.1214046,82384.0,82383.0,0.1339]
[1741542312891,0.49084,82389.0,82384.0,0.0607017]
[1741542313186,0.49084,82389.0,82382.0,0.57470332]
[1741542313187,0.1214061,82383.0,82382.0,0.53155562]
[1741542313382,0.1214061,82383.0,82382.0,0.53091562]
[1741542313579,0.3383061,82383.0,82382.0,0.48161812]
[1741542314486,0.1214149,82377.0,82376.0,0.2562]
[1741542315089,0.0607065,82379.0,82375.0,0.00018204]
[1741542315090,0.1214164,82376.0,82375.0,0.00018204]
[1741542315487,0.1214164,82376.0,82375.0,0.25738204]
[1741542315683,0.26107922,82378.0,82375.0,0.00018204]
[1741542315886,0.1214164,82376.0,82375.0,0.00018204]
[1741542316388,0.2432164,82376.0,82375.0,0.00018204]
[1741542317590,0.2432164,82376.0,82375.0,4e-08]
[1741542317890,0.3992164,82376.0,82375.0,4e-08]
[1741542318397,0.1214326,82366.0,82364.0,0.3536427]
[1741542318584,0.1214326,82366.0,82365.0,0.6246]
[1741542318892,0.1214326,82365.0,82364.0,0.3536427]
[1741542319092,0.3825326,82365.0,82364.0,0.3536427]
[1741542319291,0.3825326,82365.0,82364.0,0.3068595]
[1741542319480,0.39479251,82365.0,82364.0,0.3068595]
[1741542319682,0.39479251,82365.0,82364.0,0.2163229]
[1741542320195,0.39479251,82365.0,82364.0,0.1294928]
[1741542320588,0.39479251,82365.0,82364.0,0.0597377]
[1741542320890,0.12144,82360.0,82359.0,0.378437]
[1741542321088,0.25144,82360.0,82359.0,0.378437]
[1741542322587,0.1214444,82357.0,82356.0,0.00018204]
[1741542322791,0.4822444,82357.0,82356.0,4e-08]
[1741542323584,0.6991444,82357.0,82356.0,4e-08]
[1741542324503,0.01225991,82365.0,82356.0,0.36080004]
[1741542324794,0.1214444,82357.0,82356.0,0.48224324]
[1741542325095,0.01500617,82359.0,82356.0,0.48224324]
[1741542325292,0.1214388,82361.0,82360.0,0.1214385]
[1741542325794,0.01500617,82367.0,82364.0,0.1214341]
[1741542326094,0.01500617,82370.0,82367.0,0.1214296]
[1741542326297,0.00018204,82373.0,82372.0,0.1214223]
[1741542326495,0.00018204,82373.0,82372.0,0.4822223]
[1741542326894,4e-08,82373.0,82372.0,0.4822223]
[1741542327400,4e-08,82373.0,82372.0,0.6322223]
[1741542327595,4e-08,82373.0,82372.0,0.4822223]
[1741542329399,0.1214,82389.0,82388.0,0.1213968]
[1741542329602,0.1214,82389.0,82388.0,0.9713168]
[1741542329901,0.1214,82389.0,82388.0,0.48912]
[1741542330605,0.1214,82389.0,82388.0,0.12832]
[1741542331002,0.0607014,82386.0,82380.0,0.36098204]
[1741542331197,0.13640317,82381.0,82380.0,0.36098204]
[1741542331397,0.0607036,82383.0,82382.0,0.1214033]
[1741542331794,0.121409,82381.0,82380.0,0.36098204]
[1741542332605,0.229009,82381.0,82380.0,0.36098204]
[1741542333001,0.24106149,82381.0,82380.0,0.00018204]
[1741542333310,0.1214326,82365.0,82364.0,0.4822317]
[1741542333607,0.13641677,82365.0,82364.0,0.4822317]
[1741542333797,0.1214326,82365.0,82364.0,0.4822317]
[1741542334606,0.07569957,82367.0,82366.0,0.1214311]
[1741542334607,0.1821461,82367.0,82366.0,0.1214311]
[1741542334804,0.01498842,82367.0,82366.0,0.1214311]
[1741542335003,0.01517046,82373.0,82366.0,0.3608]
[1741542335312,0.00018204,82373.0,82372.0,0.4822223]
[1741542335695,0.00018204,82373.0,82372.0,0.6127223]
[1741542336097,0.1289,82381.0,82372.0,0.6127223]
[1741542336098,0.00076,82395.0,82372.0,0.6413]
[1741542336304,0.2169,82399.0,82388.0,0.1213987]
[1741542336305,0.1820999,82389.0,82388.0,0.1213987]
[1741542336599,0.1820924,82392.0,82391.0,0.1213928]
[1741542336998,0.01498842,82396.0,82393.0,0.1213913]
[1741542337203,0.00182141,82398.0,82397.0,0.1213854]
[1741542337603,0.12320541,82398.0,82397.0,0.1213854]
[1741542337905,0.00182141,82398.0,82397.0,0.1213854]
[1741542338605,0.01499481,82418.0,82404.0,0.0606871]
[1741542338805,0.01499481,82422.0,82417.0,0.3608]
[1741542339009,0.1213545,82418.0,82417.0,0.3608]
[1741542339711,0.1213545,82418.0,82417.0,0.482156]
[1741542340110,0.1213545,82418.0,82417.0,0.121356]
[1741542340305,0.1213575,82416.0,82415.0,0.4839]
[1741542340511,0.1213575,82416.0,82415.0,0.6052586]
[1741542340707,0.0606753,82421.0,82420.0,0.1213516]
[1741542340905,0.0606753,82421.0,82417.0,0.0606779]
[1741542341107,0.1213545,82419.0,82418.0,0.121354]
[1741542341618,0.1213575,82417.0,82416.0,0.1213565]
[1741542341911,0.1213663,82410.0,82409.0,0.00018204]
[1741542342615,0.13368654,82410.0,82409.0,0.00018204]
[1741542343118,0.13368654,82410.0,82382.0,0.34426]
[1741542343119,0.37922024,82410.0,82382.0,0.34426]
[1741542343308,0.1214061,82383.0,82382.0,0.33516]
[1741542343514,0.1214061,82383.0,82382.0,0.1214]
[1741542343710,0.1214061,82383.0,82382.0,0.4822]
[1741542343913,0.1214061,82383.0,82382.0,0.6036075]
[1741542344419,0.1214061,82383.0,82382.0,0.2428075]
[1741542345518,0.2514,82384.0,82374.0,0.12634204]
[1741542345715,0.1214164,82376.0,82375.0,0.1214]
[1741542346323,0.2514,82382.0,82375.0,0.1214]
[1741542346324,0.01230171,82386.0,82375.0,0.1214]
[1741542346518,0.182115,82381.0,82380.0,0.3608]
[1741542346713,0.060698,82390.0,82387.0,0.1213972]
[1741542346918,0.1820938,82390.0,82389.0,0.1213972]
[1741542347129,0.1820938,82390.0,82388.0,0.1343]
[1741542347130,0.060698,82390.0,82388.0,0.1343]
[1741542347318,0.3722972,82389.0,82388.0,0.1343]
[1741542347716,0.1214179,82375.0,82372.0,0.0607106]
[1741542347915,0.1214179,82375.0,82374.0,0.26499772]
[1741542348328,0.0607045,82381.0,82374.0,0.26499772]
[1741542348329,0.1821077,82385.0,82384.0,0.1214046]
[1741542348917,0.1213985,82389.0,82388.0,0.1820974]
[1741542349118,0.1213985,82389.0,82388.0,0.4214987]
[1741542350321,0.14302959,82391.0,82388.0,0.4214987]
[1741542350520,0.14302959,82391.0,82390.0,0.1213958]
[1741542350724,0.14302959,82391.0,82389.0,0.1248]
[1741542350725,0.1820917,82394.0,82393.0,0.1213849]
[1741542350927,0.1213958,82390.0,82389.0,0.1248]
[1741542351121,0.1213958,82390.0,82389.0,0.2461972]
[1741542351324,0.0606961,82396.0,82395.0,0.1213884]
[1741542351822,0.0606961,82396.0,82395.0,0.4821884]
[1741542352124,0.0606961,82396.0,82395.0,0.3608]
[1741542353013,0.1213958,82390.0,82389.0,0.1248]
[1741542353720,0.1213958,82390.0,82389.0,0.2461972]
[1741542353918,0.3754958,82390.0,82389.0,0.2461972]
[1741542354118,0.00182135,82400.0,82389.0,0.1248]
[1741542354314,0.1316,82399.0,82398.0,0.121384]
[1741542354519,0.2529825,82399.0,82398.0,0.482184]
[1741542354724,0.3754825,82399.0,82398.0,0.482184]
[1741542354918,0.1213943,82391.0,82390.0,0.24601784]
[1741542355419,0.1213943,82391.0,82390.0,0.12157784]
[1741542355611,0.1213943,82391.0,82390.0,0.25497784]
[1741542355816,0.00018204,82402.0,82399.0,0.1213825]
[1741542356016,0.12320235,82400.0,82399.0,0.4821825]
[1741542356527,0.00182135,82400.0,82399.0,0.49400433]
[1741542356712,0.12320235,82400.0,82399.0,0.4821825]
[1741542358018,0.12320235,82400.0,82399.0,0.3608]
[1741542358220,0.13232135,82400.0,82394.0,0.01182907]
[1741542358421,0.1213884,82395.0,82394.0,0.01182907]
[1741542358622,0.1213884,82395.0,82391.0,0.1207]
[1741542358823,0.1213928,82392.0,82391.0,0.1207]
[1741542359022,0.1213928,82392.0,82391.0,0.2420943]
[1741542359221,0.13357687,82392.0,82391.0,0.1207]
[1741542359422,0.1214179,82375.0,82369.0,0.21376]
[1741542359833,0.1214179,82375.0,82370.0,0.3725248]
[1741542360034,0.13336557,82375.0,82372.0,0.1214214]
[1741542360229,0.1214179,82375.0,82374.0,0.49131568]
[1741542360428,0.1214179,82375.0,82374.0,0.36989638]
[1741542360628,0.01208879,82376.0,82370.0,0.1304]
[1741542360629,0.1214238,82371.0,82370.0,0.1304]
[1741542361025,0.1214282,82368.0,82367.0,0.00888727]
[1741542361333,0.127,82370.0,82369.0,0.1214267]
[1741542361635,0.1214252,82370.0,82369.0,0.1214238]
[1741542362438,0.1214252,82370.0,82369.0,0.2593]
[1741542362633,0.1214296,82367.0,82366.0,0.00937813]
[1741542363033,0.1214296,82367.0,82366.0,0.13080923]
[1741542363523,0.1214296,82367.0,82366.0,0.00937813]
[1741542363722,0.21555708,82391.0,82371.0,0.0607112]
[1741542363933,0.2513,82390.0,82382.0,0.1214075]
[1741542364126,0.12158814,82383.0,82382.0,0.2447275]
[1741542364436,0.1214075,82382.0,82381.0,0.127]
[1741542364631,0.2578,82382.0,82373.0,0.128]
[1741542364931,0.1214179,82375.0,82374.0,0.6092193]
[1741542365136,0.1214179,82375.0,82374.0,0.3764193]
[1741542365335,0.1282,82382.0,82374.0,0.255]
[1741542365533,0.1889038,82382.0,82374.0,0.255]
[1741542365725,0.1214179,82375.0,82374.0,0.4371216]
[1741542366540,0.00018204,82383.0,82382.0,0.1214075]
[1741542366841,0.00018204,82383.0,82382.0,0.6053675]
[1741542367141,0.12158814,82383.0,82382.0,0.48396]
[1741542367341,0.00018204,82383.0,82382.0,0.8649675]
[1741542367530,0.2546,82404.0,82390.0,0.1213958]
[1741542367836,0.0018213,82398.0,82390.0,0.3608]
[1741542368037,0.30169192,82391.0,82390.0,0.3608]
[1741542368340,0.30169192,82391.0,82390.0,0.4821958]
[1741542368527,0.30169192,82391.0,82390.0,0.7417958]
[1741542368728,0.30169192,82391.0,82390.0,0.6204]
[1741542368931,0.18029762,82391.0,82390.0,0.7417958]
[1741542369338,0.30169192,82391.0,82390.0,0.7417958]
[1741542369646,0.1213943,82391.0,82390.0,0.7417958]
[1741542369837,0.1213869,82397.0,82396.0,0.1213869]
[1741542370235,0.00018204,82399.0,82398.0,0.121384]
[1741542370544,0.00018204,82399.0,82398.0,0.482184]
[1741542370929,0.00018204,82399.0,82398.0,0.610484]
[1741542371134,0.00018204,82399.0,82398.0,0.737584]
[1741542371333,0.12156454,82399.0,82398.0,0.737584]
[1741542371532,0.00018204,82399.0,82398.0,0.737584]
[1741542371734,0.00182098,82412.0,82411.0,0.1213648]
[1741542371928,0.00182098,82412.0,82411.0,0.6044048]
[1741542372538,0.18029762,82413.0,82411.0,0.61341086]
[1741542372738,0.18955747,82446.0,82411.0,0.61341086]
[1741542372739,0.1804519,82425.0,82412.0,0.3608]
[1741542372941,0.1804519,82425.0,82424.0,0.4821457]
[1741542373137,0.1804519,82425.0,82424.0,0.6044657]
[1741542373438,0.1804519,82425.0,82424.0,0.76658509]
[1741542373629,0.25008925,82439.0,82424.0,0.64523939]
[1741542373829,0.25008925,82439.0,82438.0,0.4821251]
[1741542374039,0.25008925,82439.0,82438.0,1.1787651]
[1741542374736,0.25008925,82439.0,82438.0,1.4328651]
[1741542375138,0.37141285,82439.0,82438.0,1.0720651]
[1741542375436,0.37141285,82439.0,82438.0,0.58994]
[1741542375636,0.37141285,82439.0,82438.0,0.21376]
[1741542375837,0.1213339,82432.0,82431.0,0.1324]
[1741542376040,0.1213354,82431.0,82430.0,0.00018204]
[1741542376233,0.2474354,82431.0,82430.0,0.12151884]
[1741542376435,0.2474354,82431.0,82430.0,0.21755258]
[1741542376838,0.2474354,82431.0,82430.0,0.46928938]
[1741542377044,0.2474354,82431.0,82430.0,0.34795258]
[1741542377342,0.2474354,82431.0,82430.0,0.21755258]
[1741542379242,0.6082354,82431.0,82430.0,0.09221188]
[1741542379437,0.6082354,82431.0,82430.0,0.06767085]
[1741542379744,0.87996499,82431.0,82427.0,0.2635906]
[1741542380042,0.87996499,82431.0,82404.0,0.2475726]
[1741542380043,0.1213737,82405.0,82404.0,0.2475726]
[1741542380243,0.1213737,82405.0,82404.0,0.1262]
[1741542380444,0.121381,82400.0,82399.0,0.36994927]
[1741542380648,0.121381,82400.0,82399.0,0.3608]
[1741542381245,0.13345364,82400.0,82399.0,0.3608]
[1741542381544,0.121381,82400.0,82399.0,0.4821825]
[1741542382134,0.1893878,82404.0,82403.0,0.1213766]
[1741542382348,0.1287,82404.0,82403.0,0.1213766]
[1741542382541,0.1311,82412.0,82399.0,0.3608]
[1741542382742,0.19065178,82410.0,82400.0,0.1287]
[1741542382934,0.121381,82401.0,82400.0,0.121378]
[1741542383249,0.121381,82401.0,82400.0,0.2427565]
[1741542383545,0.1213723,82406.0,82405.0,0.1213707]
[1741542383747,0.3608,82416.0,82410.0,0.1213663]
[1741542383939,0.1354,82423.0,82412.0,0.4821633]
[1741542384135,0.12204,82437.0,82412.0,0.3608]
[1741542384338,0.1311,82436.0,82433.0,0.5427929]
[1741542384537,0.14302959,82461.0,82442.0,0.1213192]
[1741542384741,0.1311,82450.0,82443.0,0.6069177]
[1741542385048,0.0606568,82446.0,82443.0,0.1248]
[1741542385345,0.12313649,82444.0,82443.0,0.1248]
[1741542385548,0.12313649,82444.0,82443.0,0.2461177]
[1741542386047,0.26383649,82444.0,82443.0,0.1248]
[1741542386236,0.26383649,82444.0,82443.0,0.2461177]
[1741542386438,0.26383649,82444.0,82432.0,0.3608]
[1741542386439,0.121328,82436.0,82432.0,0.3608]
[1741542386650,0.121328,82436.0,82435.0,0.12151154]
[1741542386840,0.121328,82436.0,82435.0,0.00018204]
[1741542387243,0.40200983,82436.0,82435.0,0.00018204]
[1741542387638,0.1278,82436.0,82435.0,0.12151154]
[1741542387946,0.00182029,82444.0,82443.0,0.1213177]
[1741542388343,0.12313649,82444.0,82443.0,0.2657]
[1741542388549,0.12313649,82444.0,82442.0,0.12176]
[1741542388550,0.1213183,82443.0,82442.0,0.1213177]
[1741542388846,0.2596183,82443.0,82442.0,0.1213177]
[1741542389045,0.1213251,82438.0,82437.0,0.12208]
[1741542389239,0.121328,82436.0,82434.0,0.21368]
[1741542389949,0.121328,82436.0,82435.0,0.48231154]
[1741542390245,0.121328,82436.0,82435.0,0.76190774]
[1741542390542,0.259628,82436.0,82435.0,0.52243384]
[1741542391050,0.1308,82443.0,82442.0,0.1213192]
[1741542391350,0.1213196,82443.0,82442.0,0.1213192]
[1741542391642,0.1213236,82439.0,82438.0,0.0606624]
[1741542391943,0.1213236,82439.0,82438.0,0.2605251]
[1741542392159,0.0606608,82441.0,82437.0,0.12108]
[1741542392447,0.121328,82436.0,82435.0,0.36098204]
[1741542392644,0.121328,82436.0,82435.0,0.48231154]
[1741542392951,0.121328,82436.0,82435.0,0.26061154]
[1741542393137,0.121328,82436.0,82435.0,0.13928204]
[1741542393339,0.121328,82436.0,82435.0,0.00018204]
[1741542394339,0.1315,82438.0,82435.0,0.12151154]
[1741542394543,0.00076,82460.0,82442.0,0.1213177]
[1741542394544,0.121319,82443.0,82442.0,0.1213177]
[1741542395551,0.121319,82443.0,82442.0,0.4821177]
[1741542396050,0.00182029,82444.0,82442.0,0.4821177]
[1741542396353,0.00182029,82444.0,82443.0,0.1213177]
[1741542396540,0.00182029,82444.0,82442.0,0.4821177]
[1741542396541,0.1213001,82455.0,82451.0,0.1213059]
[1741542396741,0.0606479,82458.0,82451.0,0.4821059]
[1741542396940,0.121298,82457.0,82451.0,0.4821059]
[1741542397148,0.12148654,82452.0,82451.0,0.4821059]
[1741542397451,0.1927385,82472.0,82471.0,0.1212765]
[1741542397651,0.138,82472.0,82471.0,0.1212765]
[1741542397949,0.121278,82470.0,82469.0,0.0606391]
[1741542398148,0.21657533,82481.0,82465.0,0.3608]
[1741542398454,0.1212676,82478.0,82477.0,0.1212662]
[1741542398952,0.1212676,82478.0,82472.0,0.6012312]
[1741542398953,0.1212736,82473.0,82472.0,0.6012312]
[1741542399154,0.138,82478.0,82472.0,0.6012312]
[1741542399350,0.34644908,82479.0,82478.0,0.1212662]
[1741542399851,0.1212707,82473.0,82472.0,0.48064]
[1741542400042,0.1212707,82473.0,82472.0,0.6012322]
[1741542400439,0.138,82478.0,82476.0,0.1212648]
[1741542400645,0.1818869,82477.0,82476.0,0.1212586]
[1741542401050,0.138,82478.0,82472.0,0.5405908]
[1741542401051,0.28581628,82479.0,82478.0,0.1212541]
[1741542401645,0.40706888,82479.0,82478.0,0.1212541]
[1741542401948,0.28581628,82479.0,82478.0,0.1212541]
[1741542402251,0.11892,82496.0,82476.0,0.4214279]
[1741542402252,0.33328553,82504.0,82476.0,0.3608]
[1741542402450,0.1412,82503.0,82498.0,0.1212232]
[1741542402653,0.25293376,82504.0,82499.0,0.1212232]
[1741542403643,0.17931795,82504.0,82503.0,0.1212174]
[1741542403849,0.32109026,82515.0,82514.0,0.1212012]
[1741542404050,0.32109026,82515.0,82514.0,0.97348773]
[1741542404748,0.32109026,82515.0,82514.0,0.61268773]
[1741542405449,0.44228996,82515.0,82514.0,0.3608]
[1741542405645,0.12121,82508.0,82507.0,0.2136]
[1741542406041,0.12121,82508.0,82507.0,0.3348115]
[1741542406258,0.0606037,82510.0,82508.0,0.12121]
[1741542406549,0.0606015,82513.0,82512.0,0.1212041]
[1741542406750,0.1403,82518.0,82509.0,0.3608]
[1741542406751,0.121198,82517.0,82516.0,0.1211968]
[1741542407747,0.1211919,82521.0,82520.0,0.1211909]
[1741542408050,0.0605891,82530.0,82527.0,0.0605909]
[1741542408352,0.1211806,82529.0,82528.0,0.1211803]
[1741542408855,0.1211806,82528.0,82527.0,0.0605909]
[1741542409350,0.14302959,82539.0,82525.0,0.3608]
[1741542409547,0.181771,82530.0,82529.0,0.1211747]
[1741542409946,0.181771,82530.0,82526.0,0.1406]
[1741542409947,0.1211821,82527.0,82526.0,0.1406]
[1741542410151,0.1211836,82526.0,82525.0,0.3608]
[1741542411548,0.00084,82547.0,82534.0,0.1211665]
[1741542411751,0.060584,82537.0,82536.0,0.1211674]
[1741542412055,0.1817529,82537.0,82536.0,0.1211674]
[1741542412354,0.200084,82537.0,82536.0,0.3995674]
[1741542412549,0.200084,82537.0,82536.0,0.2784]
[1741542412750,0.1211806,82528.0,82527.0,0.2832]
[1741542413153,0.1211836,82526.0,82521.0,0.39976]
[1741542413453,0.1211836,82526.0,82523.0,0.1211865]
[1741542413753,0.1211836,82526.0,82521.0,0.39976]
[1741542413940,0.2551836,82526.0,82520.0,0.00018181]
[1741542414142,0.3839836,82526.0,82520.0,0.00018181]
[1741542414345,0.5007436,82526.0,82520.0,0.00018181]
[1741542414749,0.0605865,82534.0,82521.0,0.1426]
[1741542414949,0.1211748,82532.0,82531.0,0.1211748]
[1741542415552,0.3839748,82533.0,82532.0,0.1211748]
[1741542415755,0.2499748,82533.0,82532.0,0.3993748]
[1741542416250,0.3608,82552.0,82532.0,0.639]
[1741542416449,0.55145178,82570.0,82545.0,0.1211557]
[1741542416652,0.1168,82558.0,82557.0,0.1211381]
[1741542416852,0.1817016,82561.0,82558.0,0.0605681]
[1741542417049,0.1817016,82561.0,82560.0,0.1211279]
[1741542417642,0.1817016,82561.0,82552.0,0.00018169]
[1741542417643,0.1211439,82553.0,82552.0,0.00018169]
[1741542417847,0.1211439,82553.0,82552.0,0.13818169]
[1741542418052,0.1211439,82553.0,82552.0,0.00018169]
[1741542418452,0.1211439,82553.0,82552.0,0.00906768]
[1741542418656,0.1211439,82553.0,82552.0,0.00018169]
[1741542418856,0.2374639,82553.0,82552.0,0.00018169]
[1741542419054,0.1211439,82553.0,82552.0,0.12132709]
[1741542419356,0.258641,82555.0,82552.0,0.00018169]
[1741542419547,0.1211439,82553.0,82552.0,0.00018169]
[1741542420050,0.1211439,82553.0,82552.0,9e-08]
[1741542421561,0.1211439,82553.0,82552.0,0.12114549]
[1741542421751,0.1211439,82553.0,82552.0,9e-08]
[1741542423160,0.1211439,82553.0,82552.0,0.12114549]
[1741542423360,0.1375,82555.0,82554.0,0.1211425]
[1741542423659,0.258641,82555.0,82554.0,0.1211425]
[1741542423851,0.258641,82555.0,82552.0,0.18171759]
[1741542423852,0.1211439,82553.0,82552.0,0.06057219]
[1741542424753,0.319214,82555.0,82554.0,0.1211425]
[1741542424947,0.1211439,82553.0,82552.0,0.06057219]
[1741542425146,0.1211439,82553.0,82552.0,9e-08]
[1741542425751,0.10297911,82555.0,82552.0,9e-08]
[1741542425946,0.1211439,82553.0,82552.0,9e-08]
[1741542426660,0.1817016,82560.0,82557.0,0.0605684]
[1741542426963,0.1211439,82553.0,82552.0,0.12114159]
[1741542427357,0.0605711,82555.0,82554.0,0.1211425]
[1741542428164,0.0605711,82555.0,82552.0,9e-08]
[1741542428462,0.1211439,82553.0,82552.0,9e-08]
[1741542429459,0.00018082,82561.0,82552.0,9e-08]
[1741542429674,0.18188342,82561.0,82560.0,0.1211337]
[1741542429864,0.00018082,82561.0,82560.0,0.1211337]
[1741542430265,2e-08,82561.0,82560.0,0.13816906]
[1741542430567,0.0314463,82600.0,82597.0,0.1210794]
[1741542430859,0.0314463,82600.0,82599.0,0.4818765]
[1741542431058,0.1382,82626.0,82599.0,0.4818765]
[1741542431059,0.11604,82625.0,82618.0,0.1210483]
[1741542431263,0.12828011,82625.0,82613.0,0.0605275]
[1741542431456,0.1210618,82609.0,82608.0,0.3608]
[1741542432368,0.1210618,82609.0,82608.0,0.49100883]
[1741542432562,0.1210579,82614.0,82613.0,0.1210528]
[1741542432863,0.1325,82623.0,82622.0,0.1210428]
[1741542433061,0.40410524,82633.0,82620.0,0.3608]
[1741542433253,0.1325,82631.0,82620.0,0.3608]
[1741542433458,0.1325,82631.0,82630.0,0.4818311]
[1741542433666,0.1210229,82636.0,82635.0,0.1210237]
[1741542433961,0.1325,82642.0,82630.0,0.3608]
[1741542434155,0.1210296,82631.0,82630.0,0.3608]
[1741542434356,0.0604988,82653.0,82635.0,0.1210206]
[1741542434667,0.25016,82653.0,82637.0,0.3608]
[1741542434854,0.0605025,82648.0,82641.0,0.060507]
[1741542435056,0.1386,82652.0,82651.0,0.1210003]
[1741542435256,0.1209988,82654.0,82653.0,0.1209944]
[1741542435464,0.0604972,82655.0,82647.0,0.3608]
[1741542435768,0.1210047,82648.0,82647.0,0.3608]
[1741542435966,0.1210208,82637.0,82633.0,0.3608]
[1741542436263,0.1210208,82637.0,82636.0,7e-08]
[1741542436962,0.2552208,82637.0,82636.0,7e-08]
[1741542437161,0.3949208,82637.0,82636.0,7e-08]
[1741542437354,0.2607208,82637.0,82636.0,7e-08]
[1741542437553,0.116,82638.0,82636.0,0.36080007]
[1741542437761,0.0605085,82640.0,82636.0,0.48182087]
[1741542437961,0.1210208,82637.0,82636.0,0.36080007]
[1741542438164,0.0605031,82647.0,82636.0,0.36080007]
[1741542438357,0.1210208,82637.0,82636.0,7e-08]
[1741542439262,0.3923208,82637.0,82636.0,7e-08]
[1741542439461,0.2607208,82637.0,82636.0,0.12102237]
[1741542439659,0.1166,82649.0,82643.0,0.1210106]